Cogmind - Beta 12 @@@ ROGUE MODE // 2023.09.10 @ 23:22:17 Player: monistgf Result: Destroyed by Y-64 Sentinel with KE Penetrator Performance ------------- Evolutions (6) 3000 Regions Visited (13) 2600 Robots Destroyed (259) 1295 Value Destroyed (10725) 10725 Prototype IDs (11) 220 Alien Tech Used (0) 0 Bonus (3938) 3938 TOTAL SCORE: 21778 Bonus ------- High Alert Combat Kills 1976 Follower Combat Kills 835 Entered Garrisons 400 Used RIF Installer 1000 Friendly Fire -273 Cogmind --------- Core Integrity 0/1150 Matter 240/300 Energy 99/100 System Corruption 0% Temperature Cool (0) Movement Core (50) Location -4/Factory Parts ------- > --- POWER (2) -------- (None) > --- PROPULSION (6) --- Advanced Medium Treads > --- UTILITY (7) ------ (None) > --- WEAPON (4) ------- Carbide Saw > --- INVENTORY (5) ---- High-capacity Storage Unit Matter Compressor (250) HERF Cannon Carbide Saw Peak State ------------ > --- POWER ------------ Light Angular Momentum Engine Antimatter Reactor > --- PROPULSION ------- Carbon-fiber Leg Flexi-carbon Leg Advanced VSS Leg Advanced VSS Leg Advanced VSS Leg Advanced VSS Leg > --- UTILITY ---------- Advanced Cooling System High-capacity Storage Unit Visual Processing Unit Improved Medium Armor Plating Advanced Focal Shield Relay Coupler [NC] Relay Coupler [Brawler] > --- WEAPON ----------- Quantum Rifle Quantum Rifle Quantum Rifle KE Penetrator > --- INVENTORY -------- Improved Deuterium Engine Carbon-fiber Leg Carbon-fiber Leg Carbon-fiber Leg Advanced Heat Sink Advanced Heat Sink Advanced Cooling System High-capacity Storage Unit Matter Compressor Improved Medium Armor Plating Relay Coupler [Grunt] Relay Coupler [Behemoth] Long-range Tractor Beam Compact HERF Cannon Compact HERF Cannon Autogun Smartbomb Launcher Remote Datajack Lance [Rating: 111] Favorites ----------- Power Angular Momentum Engine Engine Angular Momentum Engine Power Core Neutrino Core Reactor Antimatter Reactor Propulsion Carbon-fiber Leg Treads Armored Medium Treads Leg Carbon-fiber Leg Wheel Compact Wheel Hover Unit Gravmag System Flight Unit VTOL Module Utility Large Storage Unit Device Improved Cooling System Storage Large Storage Unit Processor Visual Processing Unit Hackware Relay Coupler [Brawler] Protection Layered Light Armor Plating Weapon Heavy Assault Rifle Energy Gun Heavy Laser Energy Cannon Advanced Beam Cannon Ballistic Gun Heavy Assault Rifle Ballistic Cannon Magnetic Acceleration Cannon Launcher Rocket Launcher Special Weapon Remote Datajack Impact Weapon Mace Slashing Weapon Axe Piercing Weapon Plasma Lance Build | -11 -10 -9 -9 -8 -7 -6 -6 -6 -6 -6 -5 -5 -4 ------- Run | Jun Mat Mat Min Mat Fac Fac Gar Fac Low Low Fac Gar Fac Slots Evolved 12 | . . 2 . 2 2 2 . . . . 2 . 2 Power 1 | . . . . . . 1 . . . . . . . Propulsion 4 | . . . . 2 1 . . . . . . . 1 Utility 5 | . . . . . 1 1 . . . . 2 . 1 Weapon 2 | . . 2 . . . . . . . . . . . Parts Attached 378 | 7 9 44 2 11 56 19 24 25 . 8 67 60 46 Power 44 | 2 2 5 . . 2 4 3 3 . . 10 7 6 Engine 28 | 2 2 5 . . 2 2 3 3 . . 5 4 . Core 11 | . . . . . . 1 . . . . 4 2 4 Reactor 5 | . . . . . . 1 . . . . 1 1 2 Propulsion 119 | 2 3 13 . 6 20 7 7 5 . 3 19 13 21 Treads 15 | . . . . . 2 2 1 . . . 7 1 2 Leg 91 | 2 3 12 . 5 17 5 6 5 . 3 12 12 9 Wheel 2 | . . 1 . 1 . . . . . . . . . Hover 1 | . . . . . 1 . . . . . . . . Flight 10 | . . . . . . . . . . . . . 10 Utility 79 | 1 2 5 1 1 15 4 7 3 . 2 17 16 5 Device 44 | . 1 1 . . 9 3 6 1 . 1 9 10 3 Storage 6 | 1 1 2 . . 1 . . . . . . 1 . Processor 3 | . . . . . . 1 . . . . 2 . . Hackware 6 | . . . . . 1 . . . . . . 4 1 Protection 20 | . . 2 1 1 4 . 1 2 . 1 6 1 1 Artifact . | . . . . . . . . . . . . . . Weapon 136 | 2 2 21 1 4 19 4 7 14 . 3 21 24 14 Energy Gun 28 | 1 . 6 . . 3 . 3 3 . 1 6 4 1 Energy Cannon 12 | . . 3 . . 1 . . 2 . . . 3 3 Ballistic Gun 38 | 1 1 7 . 2 5 2 1 4 . 1 3 8 3 Ballistic Cannon 15 | . 1 3 . . 4 . . 1 . 1 4 1 . Launcher 11 | . . . 1 2 1 1 . 2 . . 2 1 1 Special Weapon 7 | . . . . . . . . . . . . 6 1 Impact Weapon 14 | . . 2 . . 5 1 1 . . . 4 1 . Slashing Weapon 5 | . . . . . . . 1 . . . . . 4 Piercing Weapon 6 | . . . . . . . 1 2 . . 2 . 1 Special Melee Weapon . | . . . . . . . . . . . . . . Unidentified Prototypes 6 | . . 2 . . 1 1 1 1 . . . . . Parts Lost 128 | . . 11 . 2 14 3 7 4 1 7 31 11 37 Power 17 | . . 1 . . . . 1 1 . 1 6 2 5 Propulsion 44 | . . 1 . 1 6 1 3 2 1 1 5 6 17 Utility 30 | . . 2 . 1 3 . 1 . . 2 12 3 6 Weapon 37 | . . 7 . . 5 2 2 1 . 3 8 . 9 Highest Loss Streak 28 | . . 3 . 1 3 3 2 2 1 4 8 4 28 To Critical Strikes 7 | . . . . . . . . . . . 1 1 5 Average Slot Usage (%) 94 | . 94 98 100 99 97 89 98 98 99 91 86 97 59 Engine 8 | . 14 11 11 9 7 11 8 13 13 8 3 3 1 Core 1 | . . . . . . 1 3 . . . 2 6 1 Treads 2 | . . . . . 1 2 5 . . . 9 1 1 Leg 26 | . 28 20 11 31 32 29 27 32 32 32 16 25 17 Wheel 1 | . . 1 11 4 2 . . . . . . . . Device 8 | . . 3 . . 6 12 6 11 13 11 13 14 5 Storage 7 | . 22 11 11 9 7 6 6 6 6 6 5 4 3 Processor 1 | . . . . . . . 6 1 . . 1 6 3 Protection 5 | . . 6 11 8 6 6 6 6 6 6 7 2 2 Energy Gun 5 | . . 13 . . 1 2 2 14 . 5 5 5 7 Energy Cannon 2 | . . 5 15 4 1 6 . 2 . . . 1 . Ballistic Gun 12 | . 25 17 22 23 16 1 5 5 20 8 2 10 1 Ballistic Cannon 3 | . 2 3 . . 4 . . . 6 10 4 3 . Impact Weapon 1 | . . 2 . . 2 4 7 . . . 2 . . Naked Turns 21 | . . . . . . . . . . . . . 21 Heaviest Build 102 | 14 16 45 49 49 67 71 66 83 76 76 92 102 100 Greatest Support 167 | 20 20 23 16 40 87 92 85 90 80 85 167 80 107 Greatest Overweight (x) 4 | 2 . 2 3 4 4 1 1 . 1 1 1 2 1 Average Overweight (x) . | . . 1 3 2 1 . . . . . . . . Largest Inventory Capacity 20 | 8 8 15 15 15 15 15 15 15 15 15 15 20 20 Average Capacity 14 | 6 8 12 15 15 15 15 15 15 15 15 15 15 14 Most Carried 20 | 2 8 15 15 15 15 15 15 15 15 15 15 20 20 Average Carried 13 | 1 6 11 15 14 14 14 14 14 15 14 14 13 12 Final Capacity 20 | 8 8 15 15 15 15 15 15 15 15 15 15 20 5 Final Carried 20 | 2 8 15 15 15 14 15 15 15 15 15 15 20 4 Class Distribution -------------------- 43% | Scavenger-Tank 21% | Scavenger-Mutant 10% | Mutant 6% | Bothacker-Tank 4% | Bothacker-Mutant 3% | Bothacker-Gunner 3% | Bothacker-Skirmisher Dominant Class ---------------- Mutant | -10/Materials Scavenger-Tank | -9/Materials Scavenger-Tank | -9/Mines Scavenger-Tank | -8/Materials Scavenger-Tank | -7/Factory Mutant | -6/Factory Scavenger-Mutant | -6/Garrison Scavenger-Tank | -6/Factory Bothacker-Tank | -6/Lower Caves Bothacker-Gunner | -6/Lower Caves Scavenger-Mutant | -5/Factory Scavenger-Tank | -5/Garrison Scavenger-Tank | -4/Factory Resources | -11 -10 -9 -9 -8 -7 -6 -6 -6 -6 -6 -5 -5 -4 ----------- Run | Jun Mat Mat Min Mat Fac Fac Gar Fac Low Low Fac Gar Fac Matter Collected 9450 | 236 269 1020 37 514 1142 371 582 525 286 588 1349 2191 340 Remotely 1208 | . . . . . 322 . 234 . . . . 652 . Salvage Created 11400 | . 319 2264 29 811 1097 428 536 634 149 356 2952 1296 529 Parts 507 | . 19 136 7 45 56 11 14 29 8 12 91 48 31 Haulers Intercepted 12 | . 1 3 . 2 2 . . 2 . . 2 . . Recyclers Shooed 6 | . . 1 . 1 1 . . . . . 3 . . Parts Field Recycled 27 | . . . . . 27 . . . . . . . . Retrieved Matter 207 | . . . . . 207 . . . . . . . . Parts Self-Destructed 20 | . . . . . . . . . 10 10 . . . Prevented 5 | . . . . . . . . . 5 . . . . Kills | -11 -10 -9 -9 -8 -7 -6 -6 -6 -6 -6 -5 -5 -4 ------- Run | Jun Mat Mat Min Mat Fac Fac Gar Fac Low Low Fac Gar Fac Combat Hostiles Destroyed 216 | . 9 49 4 20 19 7 11 10 3 8 42 25 9 Melee 21 | . . . . . . . 5 5 . . 10 . 1 Guns 119 | . 7 36 . 11 9 1 6 5 1 4 16 17 6 Cannons 45 | . . 11 1 1 6 3 . . 2 4 7 8 2 AOE 25 | . 2 1 3 8 2 2 . . . . 7 . . Classes Destroyed 17 | . 4 8 . . 3 . 1 . . . . . 1 Worker 9 | . 1 1 . . 3 . . . . . 4 . . Builder 8 | . . 1 1 . 1 . . 1 . . 2 . 2 Tunneler 3 | . . 1 . . 1 . . 1 . . . . . Hauler 12 | . 1 3 . 2 2 . . 2 . . 2 . . Recycler 12 | . . 1 . 1 2 1 . . . . 7 . . Operator 1 | . . . . . 1 . . . . . . . . Watcher 4 | . . 2 . . 1 . . . . . 1 . . Swarmer 48 | . 3 7 4 7 2 . . 3 . . 11 11 . Cutter 4 | . . . . . . . . . . . . . 4 Grunt 100 | . 6 29 . 10 6 3 8 . 3 4 19 8 4 Brawler 7 | . . 1 . 1 1 1 1 1 . . 1 . . Duelist 9 | . . 2 . . 1 1 1 2 . . . 2 . Protector 1 | . . 1 . . . . . . . . . . . Sentry 29 | . . 9 . 2 5 2 . 1 . 1 5 4 . Hunter 6 | . . . . . 1 . . . . 2 2 . 1 Programmer 12 | . . . . . 3 . . 3 . 1 4 1 . Striker 1 | . . . . . . . 1 . . . . . . Best Kill Streak 11 | . 4 9 5 6 4 5 6 3 3 4 11 5 3 Combat Bots Only 8 | . 3 8 4 6 2 5 6 3 3 4 7 5 3 Max Kills in Single Turn 4 | . 2 2 4 3 2 2 2 1 1 1 3 2 1 Gunslinging 1 | . . 1 . . . . 1 . . . . . . Exploded 3 | . 2 1 3 3 1 2 . . . . 3 . . Melee 1 | . . . . . . . 1 1 . . 1 . 1 Uniques/NPCs Destroyed . | . . . . . . . . . . . . . . Combat | -11 -10 -9 -9 -8 -7 -6 -6 -6 -6 -6 -5 -5 -4 -------- Run | Jun Mat Mat Min Mat Fac Fac Gar Fac Low Low Fac Gar Fac Damage Taken 23420 | . 537 2032 13 750 2404 654 1767 1109 159 1596 5994 1879 4526 Core 2749 | . 172 300 . 30 128 24 114 143 . 116 465 100 1157 Absorbed by Shields 643 | . . . . . . . . . . . 192 451 . Reduced by Siege Mode 150 | . . . . . . . . . . . 150 . . Core Remaining (%) 61 | 100 31 . 25 94 81 . . . . 53 . 43 . Volleys Fired 624 | . 41 99 2 39 61 31 28 21 8 38 121 104 31 Largest 4 | . 2 4 3 4 4 2 3 4 4 4 4 4 4 Hottest 315 | . 55 269 114 139 124 125 131 276 129 175 232 282 315 Shots Fired 1557 | . 82 261 4 110 187 38 60 65 31 105 231 308 75 Gun 1209 | . 72 194 2 88 137 7 53 57 23 77 184 246 69 Cannon 307 | . 10 67 1 17 49 26 7 7 8 28 40 43 4 Launcher 21 | . . . 1 5 1 5 . 1 . . 7 . 1 Special 20 | . . . . . . . . . . . . 19 1 Kinetic 1116 | . 82 162 2 88 182 4 49 34 31 99 80 280 23 Thermal 362 | . . 74 1 17 4 26 11 30 . 6 138 9 46 Explosive 21 | . . . 1 5 1 5 . 1 . . 7 . 1 Electromagnetic 38 | . . 25 . . . 3 . . . . 6 . 4 Robot Hit Streak 22 | . 11 19 18 20 12 6 11 7 4 9 21 22 8 Robot Miss Streak 16 | . 4 5 . 3 6 3 7 2 2 3 8 16 5 Penetration Max 1 | . . . . . 1 . . . 1 . . 1 1 Secondary Targets 22 | . 2 9 . 2 . . 2 . . . 3 2 2 Max Gunslinging Chain 2 | . 1 2 . 1 . . 1 . . . 1 1 1 Shots Hit Robots 1142 | . 58 167 2 70 132 29 74 59 19 62 220 204 46 Core Hits 599 | . 16 76 5 43 60 21 67 22 11 23 132 101 22 Critical Kills 6 | . . 1 . 1 1 1 . . . . . 2 . Critical Parts Destroyed 12 | . . . . . 4 . . . 1 2 3 2 . Critical Strikes 38 | . . 2 . 1 7 1 . 4 1 5 13 4 . Burn 7 | . . . . . . . . . . 1 6 . . Meltdown 1 | . . . . . . 1 . . . . . . . Destroy 12 | . . 1 . 1 2 . . . 1 2 1 4 . Blast 5 | . . 1 . . 2 . . . . 2 . . . Smash 5 | . . . . . 3 . . . . . 2 . . Impale 8 | . . . . . . . . 4 . . 4 . . Melee Attacks 196 | . . 9 . . 32 1 50 30 . . 68 2 4 Impact 70 | . . 9 . . 32 1 9 . . . 17 2 . Slashing 22 | . . . . . . . 21 . . . . . 1 Piercing 104 | . . . . . . . 20 30 . . 51 . 3 Sneak Attacks 21 | . . 1 . . 6 1 . 1 . . 12 . . Combat Hostiles . | . . . . . . . . . . . . . . Follow-up Attacks 14 | . . . . . . . 7 . . . 7 . . Damage Inflicted 27744 | . 1096 2934 249 1595 3273 1201 1819 1794 386 1409 7280 3361 1347 Guns 14826 | . 647 2068 . 918 1571 112 986 676 263 793 3133 2579 1080 Cannons 4778 | . 144 722 22 164 801 475 125 144 123 616 739 643 60 Explosions 3399 | . 305 78 227 513 279 523 . 140 . . 1047 134 153 Melee 4736 | . . 66 . . 622 91 708 834 . . 2361 . 54 Ramming 5 | . . . . . . . . . . . . 5 . Kinetic 13729 | . 791 1687 . 918 2347 77 927 433 386 1333 1379 3107 344 Thermal 5718 | . . 936 22 164 177 475 184 387 . 76 2446 115 736 Explosive 3169 | . 305 . 227 513 127 523 . 140 . . 1047 134 153 Electromagnetic 387 | . . 245 . . . 35 . . . . 47 . 60 Impact 1261 | . . 66 . . 622 91 71 . . . 411 . . Slashing 218 | . . . . . . . 201 . . . . . 17 Piercing 3257 | . . . . . . . 436 834 . . 1950 . 37 Highest Corruption 16 | . . . . 5 7 3 3 8 8 9 12 16 . Average Corruption 7 | . . . . 5 3 3 3 5 8 8 8 14 . Corruption Purged . | . . . . . . . . . . . . . . Corruption Blocked . | . . . . . . . . . . . . . . Effects 274 | . . . . 1 38 3 18 27 20 35 39 93 . Message Errors 56 | . . . . . 7 1 5 5 2 10 9 17 . Matter Fused 69 | . . . . 1 10 1 5 11 3 7 7 24 . Heat Flow Errors 40 | . . . . . 8 . 3 4 4 7 5 9 . Energy Discharges 35 | . . . . . 4 1 1 3 3 3 8 12 . Data Loss (minor) 25 | . . . . . 3 . 3 1 5 2 3 8 . Data Loss (major) 14 | . . . . . 2 . . 1 1 3 4 3 . Misfires 12 | . . . . . 2 . 1 1 . 1 3 4 . Alerts 2 | . . . . . 1 . . . 1 . . . . Misdirections 2 | . . . . . . . . . . . . 2 . Weapon Failures 19 | . . . . . 1 . . 1 1 2 . 14 . Overload Shots . | . . . . . . . . . . . . . . Overflow Damage 925 | . 41 47 . . 222 33 26 45 7 . 481 23 . Projectiles 20 | . . 1 . . 12 . . . 7 . . . . Explosions 95 | . 41 2 . . . 2 . 12 . . 15 23 . Melee 810 | . . 44 . . 210 31 26 33 . . 466 . . Knockbacks 66 | . 7 2 . . 11 1 . . . 7 22 16 . Impact 8 | . . . . . 4 1 . . . . 3 . . Kinetic 50 | . 5 2 . . 7 . . . . 6 17 13 . Secondary 8 | . 2 . . . . . . . . 1 2 3 . Self-Inflicted Damage 633 | . 171 37 . 61 266 . . 19 . . . . 79 Shots 11 | . 2 1 . 2 4 . . 1 . . . . 1 Rammed . | . . . . . . . . . . . . . . Targets Rammed 1 | . . . . . . . . . . . . 1 . Kicked 1 | . . . . . . . . . . . . 1 . Crushed . | . . . . . . . . . . . . . . Highest Temperature 418 | . 33 388 57 287 260 221 230 313 147 418 199 214 379 Average Temperature 81 | . 19 72 34 88 83 73 57 78 50 107 81 72 108 Received Heat Transfer 5581 | . 168 807 . 396 642 159 474 18 63 240 1669 360 585 Effects 7 | . . 1 . . . . . . . 3 . . 3 Shutdowns 2 | . . . . . . . . . . 2 . . . Energy Bleed 1 | . . 1 . . . . . . . . . . . Interference 4 | . . . . . . . . . . 1 . . 3 Siege Activations 2 | . . . . . . . . . . . 2 . . Total Turns 89 | . . . . . . . . . . . 89 . . Longest Duration 70 | . . . . . . . . . . . 70 . . Robots Corrupted . | . . . . . . . . . . . . . . Combat Hostiles . | . . . . . . . . . . . . . . Parts Fried 22 | . . 2 . . 13 3 . . . . 2 . 2 Impact Corruptions 19 | . . 2 . . 10 2 . . . . 5 . . Robots Melted 4 | . . 1 . . . 1 . . . . 2 . . Combat Hostiles 4 | . . 1 . . . 1 . . . . 2 . . Parts Melted 25 | . . 4 . . . 1 . 1 . . 14 3 2 Heat Transferred 10833 | . . 1740 37 296 137 703 296 665 . 222 5627 148 962 Parts Sabotaged . | . . . . . . . . . . . . . . Parts Stolen . | . . . . . . . . . . . . . . Parts Stripped . | . . . . . . . . . . . . . . Power Chain Reactions 1 | . . 1 . . . . . . . . . . . Missiles Intercepted . | . . . . . . . . . . . . . . Alert | -11 -10 -9 -9 -8 -7 -6 -6 -6 -6 -6 -5 -5 -4 ------- Run | Jun Mat Mat Min Mat Fac Fac Gar Fac Low Low Fac Gar Fac Peak Influence 1800 | . 240 744 387 570 553 449 963 610 . . 837 1800 975 Initial 945 | . . 101 271 150 212 266 316 505 . . . 482 945 Average 499 | . 66 353 338 414 307 344 696 500 . . 434 1105 858 Maximum Alert Level 5 | . 1 3 1 2 2 2 3 2 . . 3 5 3 Low Security (%) 19 | 100 85 25 . 8 28 . . . . . 27 . . Level 1 22 | . 14 40 100 4 35 66 9 9 . . 14 . . Level 2 36 | . . 27 . 87 35 33 36 90 . . 34 27 . Level 3 13 | . . 7 . . . . 53 . . . 23 16 100 Level 4 7 | . . . . . . . . . . . . 50 . Level 5 . | . . . . . . . . . . . . 5 . High Security . | . . . . . . . . . . . . . . Max Security . | . . . . . . . . . . . . . . Squads Dispatched 51 | . 2 9 . 4 6 4 . 8 . . 9 . 9 Investigation 8 | . 1 4 . 1 . . . 1 . . 1 . . Extermination 7 | . . . . . 2 . . 2 . . 2 . 1 Reinforcement 19 | . 1 3 . 3 1 . . 4 . . 3 . 4 Assault 6 | . . 2 . . 1 1 . 1 . . . . 1 Garrison 11 | . . . . . 2 3 . . . . 3 . 3 Intercept . | . . . . . . . . . . . . . . Searches Triggered . | . . . . . . . . . . . . . . Construction Impeded 2 | . . . . . . . . . . . 1 . 1 Haulers Reinforced 3 | . . . . . . . . 2 . . 1 . . Active Scanning Responses . | . . . . . . . . . . . . . . Cargo Convoy Interrupts . | . . . . . . . . . . . . . . Stealth | -11 -10 -9 -9 -8 -7 -6 -6 -6 -6 -6 -5 -5 -4 --------- Run | Jun Mat Mat Min Mat Fac Fac Gar Fac Low Low Fac Gar Fac Distress Signals 13 | . 2 5 . 2 1 1 . . . . 2 . . Communications Jammed . | . . . . . . . . . . . . . . Distress Signals . | . . . . . . . . . . . . . . Times Spotted 341 | . 13 63 4 26 35 7 26 21 4 8 61 50 23 Peak Tracking Total 9 | . 4 7 4 7 6 3 8 6 3 4 9 9 9 Tactical Retreats 25 | . . 1 . . 2 . 2 2 1 . 10 5 2 Traps | -11 -10 -9 -9 -8 -7 -6 -6 -6 -6 -6 -5 -5 -4 ------- Run | Jun Mat Mat Min Mat Fac Fac Gar Fac Low Low Fac Gar Fac Traps Triggered 21 | . 1 2 . 1 7 . . 2 . . . 8 . Indirectly . | . . . . . . . . . . . . . . Trap Hack Attempts . | . . . . . . . . . . . . . . Triggered . | . . . . . . . . . . . . . . Disarmed . | . . . . . . . . . . . . . . Reprogrammed . | . . . . . . . . . . . . . . Reused . | . . . . . . . . . . . . . . Traps Extracted . | . . . . . . . . . . . . . . Installed . | . . . . . . . . . . . . . . Triggered 5 | . . . . . . . . . 5 . . . . Machines | -11 -10 -9 -9 -8 -7 -6 -6 -6 -6 -6 -5 -5 -4 ---------- Run | Jun Mat Mat Min Mat Fac Fac Gar Fac Low Low Fac Gar Fac Machines Disabled 34 | . 2 5 . 2 16 . 3 . . . . 4 2 Max in Single Turn 6 | . 1 1 . 1 6 . 1 . . . . 2 1 Garrison Access 1 | . . . . . 1 . . . . . . . . Garrison Relay 4 | . . . . . . . 2 . . . . 2 . Phase Generator 1 | . . . . . . . . . . . . 1 . Machines Repaired . | . . . . . . . . . . . . . . Machines Sabotaged . | . . . . . . . . . . . . . . Overloaded Fab Kills . | . . . . . . . . . . . . . . Hacking | -11 -10 -9 -9 -8 -7 -6 -6 -6 -6 -6 -5 -5 -4 --------- Run | Jun Mat Mat Min Mat Fac Fac Gar Fac Low Low Fac Gar Fac Machines Accessed 30 | . 5 6 . 2 9 2 2 . . 1 2 1 . Terminals 24 | . 4 6 . 2 7 1 2 . . . 1 1 . Fabricators 1 | . . . . . 1 . . . . . . . . Repair Stations . | . . . . . . . . . . . . . . Recycling Units 1 | . 1 . . . . . . . . . . . . Scanalyzers . | . . . . . . . . . . . . . . Garrison Access 3 | . . . . . 1 1 . . . . 1 . . Total Hacks 87 | . 25 20 . 8 20 3 4 . . 1 5 1 . Successful 41 | . 10 7 . 6 7 2 4 . . 1 4 . . Failed 46 | . 15 13 . 2 13 1 . . . . 1 1 . Catastrophic 8 | . 2 2 . 1 2 . . . . . . 1 . Database Lockouts . | . . . . . . . . . . . . . . Manual 44 | . 15 9 . 3 10 1 3 . . . 3 . . Terminals 77 | . 23 20 . 8 15 2 4 . . . 4 1 . Fabricators 1 | . . . . . 1 . . . . . . . . Repair Stations . | . . . . . . . . . . . . . . Recycling Units 2 | . 2 . . . . . . . . . . . . Scanalyzers . | . . . . . . . . . . . . . . Garrison Access 6 | . . . . . 4 1 . . . . 1 . . Terminal Hacks 26 | . 6 7 . 4 5 . 1 . . 1 2 . . Record 1 | . . . . . 1 . . . . . . . . Robot Analysis 3 | . 2 1 . . . . . . . . . . . Prototype ID Bank 3 | . 1 1 . . . . . . . . 1 . . Open Door 1 | . . . . . . . . . . 1 . . . Branch Access Points 2 | . . . . 1 1 . . . . . . . . Terminal Index 2 | . . 1 . . 1 . . . . . . . . Alert Level 5 | . 1 1 . 2 1 . . . . . . . . Unreport Threat 4 | . 1 1 . 1 . . . . . . 1 . . Hauler Manifests 1 | . 1 . . . . . . . . . . . . Registered Components 1 | . . 1 . . . . . . . . . . . Zone Layout 2 | . . 1 . . 1 . . . . . . . . Garrison Registry 1 | . . . . . . . 1 . . . . . . Fabricator Hacks 1 | . . . . . 1 . . . . . . . . Network Status 1 | . . . . . 1 . . . . . . . . Repair Station Hacks . | . . . . . . . . . . . . . . Recycling Unit Hacks 1 | . 1 . . . . . . . . . . . . Process 1 | . 1 . . . . . . . . . . . . Scanalyzer . | . . . . . . . . . . . . . . Garrison Access Hacks 3 | . . . . . 1 1 . . . . 1 . . Unlock Access 2 | . . . . . . 1 . . . . 1 . . Seal Access 1 | . . . . . 1 . . . . . . . . Unauthorized Hacks 10 | . 3 . . 2 . 1 3 . . . 1 . . Terminals 10 | . 3 . . 2 . 1 3 . . . 1 . . Track 2 | . . . . . . . 2 . . . . . . Botnet 6 | . 2 . . 2 . 1 . . . . 1 . . Disrupt 2 | . 1 . . . . . 1 . . . . . . Fabricators . | . . . . . . . . . . . . . . Repair Stations . | . . . . . . . . . . . . . . Recycling Units . | . . . . . . . . . . . . . . Scanalyzers . | . . . . . . . . . . . . . . Garrison Access . | . . . . . . . . . . . . . . Data Cores Recovered 1 | . . . . . 1 . . . . . . . . Used . | . . . . . . . . . . . . . . Hacking Detections 25 | . 4 6 . 2 8 1 1 . . . 2 1 . Full Trace Events 4 | . 1 2 . . . . . . . . 1 . . Feedback Events . | . . . . . . . . . . . . . . Feedback Blocked . | . . . . . . . . . . . . . . Robot Schematics Acquired . | . . . . . . . . . . . . . . Robots Built . | . . . . . . . . . . . . . . Authchips . | . . . . . . . . . . . . . . Time . | . . . . . . . . . . . . . . Total Robot Build Rating . | . . . . . . . . . . . . . . Part Schematics Acquired . | . . . . . . . . . . . . . . Parts Built . | . . . . . . . . . . . . . . Authchips . | . . . . . . . . . . . . . . Time . | . . . . . . . . . . . . . . Total Part Build Rating . | . . . . . . . . . . . . . . Parts Repaired . | . . . . . . . . . . . . . . Time . | . . . . . . . . . . . . . . Parts Recycled . | . . . . . . . . . . . . . . Recycled Matter 18 | . 18 . . . . . . . . . . . . Retrieved Matter . | . . . . . . . . . . . . . . Retrieved Components . | . . . . . . . . . . . . . . Parts Scanalyzed . | . . . . . . . . . . . . . . Part Schematics Acquired . | . . . . . . . . . . . . . . Parts Damaged . | . . . . . . . . . . . . . . Bothacking | -11 -10 -9 -9 -8 -7 -6 -6 -6 -6 -6 -5 -5 -4 ------------ Run | Jun Mat Mat Min Mat Fac Fac Gar Fac Low Low Fac Gar Fac Used RIF Installer 2 | . . . . . . . 1 . . . . 1 . Structural Interface 1 | . . . . . . . . . . . . 1 . Robots Hacked 11 | . . . . . . . . . . . . 10 1 Non-combat 1 | . . . . . . . . . . . . . 1 Combat 10 | . . . . . . . . . . . . 10 . Robot Hacks Applied 12 | . . . . . . . . . . . . 11 1 spike_heat 2 | . . . . . . . . . . . . 2 . overload_power 1 | . . . . . . . . . . . . 1 . amplify_resonance 1 | . . . . . . . . . . . . 1 . go_dormant 1 | . . . . . . . . . . . . 1 . overwrite_iff 3 | . . . . . . . . . . . . 3 . formatsys_low 1 | . . . . . . . . . . . . . 1 formatsys_high 3 | . . . . . . . . . . . . 3 . Relay Couplers Released 21 | . . . . . 3 . 8 . . . . 10 . Machine Destruction 18 | . . . . . . . 8 . . . . 10 . Programmers 3 | . . . . . 3 . . . . . . . . Attached 5 | . . . . . . . . . . . . 4 1 Fabnet Peak Effective % . | . . . . . . . . . . . . . . Robots Rewired 11 | . . . . . . . 2 . . . . 9 . Allies Hacked . | . . . . . . . . . . . . . . Hacks Repelled . | . . . . . . . . . . . . . . Allies | -11 -10 -9 -9 -8 -7 -6 -6 -6 -6 -6 -5 -5 -4 -------- Run | Jun Mat Mat Min Mat Fac Fac Gar Fac Low Low Fac Gar Fac Total Allies 20 | . . . 2 . . . 2 . . . . 15 1 Largest Group 9 | . . . 2 2 . . 2 . . . . 9 8 Highest-Rated Group 263 | . . . 46 46 . . 218 . . . . 263 224 Highest-Rated Ally 119 | . . . 31 31 . . 119 . . . . 68 68 Total Orders . | . . . . . . . . . . . . . . Ally Attacks 136 | . . . 2 24 . . 29 . . . . 37 44 Total Damage 4002 | . . . 22 295 . . 1286 . . . . 1660 739 Kills 24 | . . . . 4 . . 9 . . . . 10 1 Allies Corrupted . | . . . . . . . . . . . . . . Allies Melted . | . . . . . . . . . . . . . . Intel | -11 -10 -9 -9 -8 -7 -6 -6 -6 -6 -6 -5 -5 -4 ------- Run | Jun Mat Mat Min Mat Fac Fac Gar Fac Low Low Fac Gar Fac Robot Analysis Total 3 | . 2 1 . . . . . . . . . . . Derelict Logs Recovered 4 | . . . 1 . . . . . 2 1 . . . Drone Launches . | . . . . . . . . . . . . . . Drone Recoveries . | . . . . . . . . . . . . . . Exploration | -11 -10 -9 -9 -8 -7 -6 -6 -6 -6 -6 -5 -5 -4 ------------- Run | Jun Mat Mat Min Mat Fac Fac Gar Fac Low Low Fac Gar Fac Turns Passed 14294 | 63 675 2453 269 783 2166 363 771 1115 559 929 1968 1839 341 Spaces Moved 7319 | 45 414 966 176 355 1187 179 398 721 422 624 810 798 224 Core 47 | 7 . . . . . . . . . . . . 40 Treads 360 | . . . . . . . . . . . 356 . 4 Legs 5868 | 38 414 778 . 163 818 179 398 721 422 624 454 798 61 Wheels 925 | . . 188 176 192 369 . . . . . . . . Hover . | . . . . . . . . . . . . . . Flight 119 | . . . . . . . . . . . . . 119 Fastest Speed 30 | 50 120 120 145 130 120 122 122 120 120 120 120 114 30 Average Speed 143 | 116 120 187 145 167 144 131 123 122 123 122 158 156 67 Slowest Speed 400 | 150 120 260 145 400 260 192 193 124 190 190 240 260 182 Overloaded Moves . | . . . . . . . . . . . . . . Propulsion Burnouts . | . . . . . . . . . . . . . . Robots Hopped . | . . . . . . . . . . . . . . Cave-ins Triggered . | . . . . . . . . . . . . . . Exploration Rate (%) 39 | 4 70 77 54 33 33 5 44 23 69 59 19 61 7 Regions Visited 13 Branch Regions 3 Pre-discovered Areas 1 | . . . . . . . . . 1 . . . . Known Exits Taken 2 | . . . . . . 1 . . . . 1 . . Unknown Exits Taken 9 | 1 1 1 1 1 1 . . 1 1 1 . . . Scrap Searched 4 | . . . . . . . . . 2 2 . . . Spaces Dug 30 | . . 5 . . 11 . . 4 . . 9 1 . Terrain Destroyed 417 | . 51 7 11 44 70 13 . 12 4 11 79 98 17 Melee 30 | . . 5 . . 11 . . 4 . . 9 1 . Projectile 43 | . . . . . 4 1 . 1 4 10 2 11 10 AOE 343 | . 51 2 11 44 55 12 . 7 . . 68 86 7 Terrain Rammed . | . . . . . . . . . . . . . . Walls Destroyed . | . . . . . . . . . . . . . . Machines Disabled . | . . . . . . . . . . . . . . Actions | -11 -10 -9 -9 -8 -7 -6 -6 -6 -6 -6 -5 -5 -4 --------- Run | Jun Mat Mat Min Mat Fac Fac Gar Fac Low Low Fac Gar Fac Total 9672 | 52 511 1400 186 467 1449 273 560 863 441 716 1206 1200 348 Wait 686 | . 34 213 7 43 59 14 26 40 12 40 97 78 23 Move 7306 | 44 413 965 175 354 1186 179 396 720 421 623 809 797 224 Hop . | . . . . . . . . . . . . . . Pick Up 176 | 1 5 30 . 8 25 13 12 9 . 5 23 40 5 Fast Attach 120 | 6 3 7 . 3 11 4 5 7 . 3 27 19 25 Attach 99 | . 1 12 . 4 15 6 7 4 . 4 23 9 14 Detach 35 | . 3 6 . 3 4 3 1 2 . . 6 2 5 Swap 159 | 1 5 25 2 4 30 9 12 14 . 1 17 32 7 Drop 194 | . 6 34 . 9 26 13 14 16 . 2 24 40 10 Fire 624 | . 41 99 2 39 61 31 28 21 8 38 121 104 31 Melee 174 | . . 9 . . 32 1 37 30 . . 59 2 4 Ram . | . . . . . . . . . . . . . . Kick 1 | . . . . . . . . . . . . 1 . Crush . | . . . . . . . . . . . . . . Escape Stasis 15 | . . . . . . . . . . . . 15 . Rewire 83 | . . . . . . . 22 . . . . 61 . Trap . | . . . . . . . . . . . . . . Miscellaneous . | . . . . . . . . . . . . . . Route ------- -11/Junkyard -10/Materials (discovered 3 exits: *Mat / [*Min x2]) -9/Materials (discovered 3 exits: *Mat / [*Min] / [*Sto]) -9/Mines -8/Materials -7/Factory (discovered 3 exits: *Fac / *Low x2) -6/Factory -6/Garrison (discovered 3 exits: *Fac x3) -6/Factory (discovered 2 exits: *Fac / [*Low]) -6/Lower Caves -6/Lower Caves -5/Factory (discovered 2 exits: Fac / Gar) -5/Garrison -4/Factory History --------- Turn | Location | Event 6 | -11/Junkyard | Discovered new exit (range 15) 64 | -11/Junkyard | Entered Materials 244 | -10/Materials | Discovered new exit (range 12) 309 | -10/Materials | Build established: Mutant 385 | -10/Materials | Discovered new exit (range 4) 573 | -10/Materials | Discovered new exit (range 6) 639 | -10/Materials | Core integrity fell below 50% 739 | -10/Materials | Entered another Materials area 739 | -9/Materials | Evolved 2 slots: Weapon x2 1180 | -9/Materials | Discovered new exit (range 5) 1299 | -9/Materials | Build established: Scavenger-Tank 1693 | -9/Materials | Discovered new exit (range 3) 1726 | -9/Materials | Build established: Scavenger-Mutant 2241 | -9/Materials | Discovered new exit (range 9) 2422 | -9/Materials | Destroyed 8 combat bots 2430 | -9/Materials | Lost 3 parts (1u2w) 2537 | -9/Materials | Core integrity fell below 50% 2739 | -9/Materials | First assault squad dispatched 3192 | -9/Materials | Entered Mines 3204 | -9/Mines | Learned Materials emergency access door positions 3350 | -9/Mines | Found a hidden stash of uninstalled traps 3453 | -9/Mines | Discovered new exit (range 6) 3461 | -9/Mines | Entered Materials 3461 | -8/Materials | Accompanied by 2 allies 3461 | -8/Materials | Evolved 2 slots: Propulsion x2 3466 | -8/Materials | Led the pair of lost Derelicts to an unsafe place 3595 | -8/Materials | Build established: Scavenger-Tank 4052 | -8/Materials | Discovered new exit (range 16) 4244 | -8/Materials | Entered Factory 4244 | -7/Factory | Evolved 2 slots: Propulsion x1, Utility x1 4764 | -7/Factory | Garrison activated, responded to threat 5499 | -7/Factory | Identified exit to Lower Caves 5661 | -7/Factory | Lost 3 parts (1u2w) 5783 | -7/Factory | Discovered new exit (range 10) 5918 | -7/Factory | Build established: Scavenger-Mutant 6244 | -7/Factory | First assault squad dispatched 6410 | -7/Factory | Entered another Factory area 6410 | -6/Factory | Evolved 2 slots: Power x1, Utility x1 6536 | -6/Factory | Garrison activated, responded to threat 6585 | -6/Factory | Lost 3 parts (1n2w) 6760 | -6/Factory | First assault squad dispatched 6773 | -6/Factory | Identified exit to Garrison 6773 | -6/Factory | Entered Garrison 6808 | -6/Garrison | Discovered new exit (range 60) 6808 | -6/Garrison | Discovered new exit (range 51) 6808 | -6/Garrison | Discovered new exit (range 32) 6878 | -6/Garrison | Triggered checkpoint 6914 | -6/Garrison | Garrison Relay disabled 6924 | -6/Garrison | Spotted Striker 6965 | -6/Garrison | Destroyed Striker 6987 | -6/Garrison | Rewired Striker 7011 | -6/Garrison | Rewired Executioner 7107 | -6/Garrison | Spotted B-75 Beast 7112 | -6/Garrison | Triggered checkpoint 7312 | -6/Garrison | Garrison Relay disabled 7357 | -6/Garrison | Installed Relay Interface Framework 7542 | -6/Garrison | Identified exit to Factory 7544 | -6/Garrison | Entered Factory 7775 | -6/Factory | Build established: Scavenger-Tank 7821 | -6/Factory | Discovered new exit (range 8) 7894 | -6/Factory | First assault squad dispatched 8586 | -6/Factory | Discovered new exit (range 6) 8659 | -6/Factory | Entered Lower Caves 8820 | -6/Lower Caves | Build established: Bothacker-Tank 8897 | -6/Lower Caves | Learned Factory stockpile data 8989 | -6/Lower Caves | Encountered a Warlord checkpoint 9191 | -6/Lower Caves | Discovered new exit (range 11) 9218 | -6/Lower Caves | Entered another Lower Caves area 9220 | -6/Lower Caves | Attracted the attention of an 0b10 checkpoint 9344 | -6/Lower Caves | Lost 3 parts (2u1w) 9417 | -6/Lower Caves | Learned location of 1 exit from Factory 9556 | -6/Lower Caves | Lost 4 parts (1p1n2w) 9718 | -6/Lower Caves | Spotted B-75 Beast 9901 | -6/Lower Caves | Build established: Bothacker-Gunner 10068 | -6/Lower Caves | Discovered new exit (range 15) 10112 | -6/Lower Caves | Encountered a Warlord checkpoint 10147 | -6/Lower Caves | Entered Factory 10147 | -5/Factory | Evolved 2 slots: Utility x2 10148 | -5/Factory | Identified exit to Factory 10436 | -5/Factory | Build established: Bothacker-Skirmisher 10749 | -5/Factory | Lost 8 parts (1n3u4w) 10903 | -5/Factory | Build established: Bothacker-Mutant 10949 | -5/Factory | Lost 3 parts (1u2w) 11294 | -5/Factory | Garrison activated, responded to threat 11346 | -5/Factory | Lost 3 parts (2u1w) 11384 | -5/Factory | Destroyed 7 combat bots 11518 | -5/Factory | Lost 3 parts (2p1n) 11533 | -5/Factory | System corruption reached 10% 11581 | -5/Factory | Lost 8 parts (1p2n4u1w) 11980 | -5/Factory | Build established: Scavenger-Tank 12106 | -5/Factory | Identified exit to Garrison 12115 | -5/Factory | Entered Garrison 12212 | -5/Garrison | Triggered checkpoint 12265 | -5/Garrison | Expanded RIF knowledge: Structural Interface 12300 | -5/Garrison | Garrison Relay disabled 12594 | -5/Garrison | Spotted B-75 Beast 12634 | -5/Garrison | Core integrity fell below 50% 12793 | -5/Garrison | Triggered checkpoint 12860 | -5/Garrison | Lost 4 parts (1p2n1u) 12900 | -5/Garrison | Triggered checkpoint 13000 | -5/Garrison | Lost 3 parts (1p2n) 13177 | -5/Garrison | Garrison Relay disabled 13238 | -5/Garrison | Triggered checkpoint 13254 | -5/Garrison | Triggered checkpoint 13254 | -5/Garrison | Triggered checkpoint 13522 | -5/Garrison | Discovered exit to Factory (range 3) 13556 | -5/Garrison | Triggered checkpoint 13854 | -5/Garrison | Phase Generator disabled 13954 | -5/Garrison | Entered Factory 13954 | -4/Factory | Accompanied by 8 allies 13954 | -4/Factory | Evolved 2 slots: Propulsion x1, Utility x1 13993 | -4/Factory | Garrison activated, responded to threat 14162 | -4/Factory | Released all parts (3) 14164 | -4/Factory | Core integrity fell below 50% 14186 | -4/Factory | Core integrity fell below 20% 14213 | -4/Factory | Lost 28 parts (4p9n6u9w) 14231 | -4/Factory | First assault squad dispatched 14295 | -4/Factory | Destroyed by Y-64 Sentinel with KE Penetrator Last Messages --------------- 14267_ Neutrino Reactor explodes. 14267_ Chain reaction triggered in Corrupted Neutrino Core. 14267_ C-35 Carver destroyed. 14270_ Acquired 35 matter. 14271_ Acquired Mic. Nuclear Core. 14274_ Acquired Imp. Surge Thruster. 14276_ Acquired Carbide Saw. 14283_ Penetrated by Slug. 14284_ Slug penetrates Wall. 14287_ Penetrated by Slug. 14290_ Imp. Surge Thruster destroyed. 14290_ Dropped Remote Datajack. 14290_ Dropped Adv. Heat Sink. 14291_ Mic. Nuclear Core destroyed. 14292_ Slug penetrates Wall. 14294_ RIF reveals location of hidden door. 14294_ VTOL Module destroyed. 14295_ Penetrated by Slug. 14295_ Imp. Surge Thruster destroyed. 14295_ Penetrated by Slug. Map ----- +----------------------------------------------------+ | ?????????????????????????????????????????????????? | | ?????????????????????????????????????????????????? | | ?????????????????????????????????????????????????? | | ?????????????????????????????????????????????????? | | ?????????????????????????????????????????????????? | | ?????????????????????????????????????????????????? | | ?????????????????????????????????????????????????? | | ?????????????????????????????????????????????????? | | ?????????????????????????????????????????????????? | | ?????????????????????????????????????????????????? | | ?????????????????????????????????????????????????? | | ?????????????????????????????????????????????????? | | ?????????????????????????????????????????????????? | | ?????????????????????????????????????????????????? | | ?????????????????????????????????????????????????? | | ?##??????????????????????????????????????????????? | | ##"######????????????????????????????????????????? | | !! #????????????????????????????????????????? | | ![ #????????????????????????????????????????? | | = ! #????????????????????????????????????????? | | ?? ??????????????????????????????????????????? | | ??##+##???????????????????????#####??????????????? | | ??# ###################### #??????????????? | | ??# | + !#??????????????? | | ??# ! ## +??????????????? | | #### @#??? #??????????????? | | # #?????" #??????????????? | | # ^ #??????#??????????????? | | + +?????????????????????? | | !#### ! !!^""""" #?????????????????????? | | * ???# !] ""T"" #?????????????????????? | | [????### #?????????????????????? | | ! ??????# #?????????????????????? | | #???????# = #?????????????????????? | | ######### ! +?????????????????????? | | #=# #########?????????????????????? | | # ##### #????????????????????????????? | | +%#???# #????????????????????????????? | | #*#???? #????????????????????????????? | | #!#?????? #????????????????????????????? | | # ??????? #????????????????????????????? | | # ??????? #????????????????????????????? | | + ????????????????????????????????????? | | # ????????????????????????????????????? | | # ? ???????????????????????????????????? | | # ? #??????????????????????????????????? | | # ? #??????????????????????????????????? | | # ? #??????????????????????????????????? | | # ??#??????????????????????????????????? | | # ???????????????????????????????????? | +----------------------------------------------------+ Best States ------------- Heat Dissipation 105 Coolant Potential 80 Energy Generation 35 Energy Capacity 540 Matter Stores 300 Matter Capacity 300 Sight Range 18 Robot Scan Range 16 Terrain Scan Range 20 Terrain Scan Density 10 Armor Coverage 600 Resistance: KI 30 Phase Shifting 5 Evasion (%) 62 Recoil Reduction 5 Kinecelleration 40 Offensive Hacking 10 Relay Coupler Types 2 Relay Coupler Value 45 Item Schematics ----------------- None Robot Schematics ------------------ None Fabricated ------------ Nothing Alien Tech Used ----------------- None Achievements -------------- Assimilation Complete Error 47 Challenges ------------ None Game ------ Seed ClaymoresAntimatterSheargun Manual? 0 Play Time 03:26:00 Cumulative 43.4 hours Start 2023.09.10 @ 12:57:51 End 2023.09.10 @ 23:22:17 Sessions 3 Manual Loads 0 Difficulty Rogue Special Mode None Game No. 27 Rogue 27 Adventurer 0 Explorer 0 Win Type - Total 0 Types 0/0/0/0/0/0/0/0/0 Lore% 21 Gallery% 36 Achievement% 32 Wizard Run 0 Options --------- ASCII 0 Keyboard 1 Movement Numpad Keybinds 0 Fullscreen 1 Font 24/Terminus Map View 76x50 Tactical HUD 1 Map Filters NONE Filters NONE Steam 1 RUN: 123d2fbf-9b00-4793-9014-b430c3c83ba3